bitfinex-derivatives/quotes_BTCF0:USTF0_20241025
["timestamp","ask_amount","ask_price","bid_price","bid_amount"]
[1729867692783,0.14058995,68343.0,68342.0,0.073194]
[1729867692978,0.14058995,68346.0,68341.0,0.21964277]
[1729867693173,0.073193,68343.0,68342.0,0.21964277]
[1729867693375,0.073193,68343.0,68341.0,0.073194]
[1729867693579,0.1167,68349.0,68339.0,0.073196]
[1729867693580,0.073197,68340.0,68339.0,0.073196]
[1729867693779,0.14058995,68342.0,68341.0,0.073195]
[1729867693983,0.14058995,68346.0,68341.0,0.073195]
[1729867694188,0.073193,68343.0,68341.0,0.29309462]
[1729867694380,0.21378395,68342.0,68341.0,0.21989962]
[1729867694587,0.073198,68339.0,68337.0,0.45402831]
[1729867694787,0.073198,68339.0,68338.0,0.08509951]
[1729867694985,0.073198,68339.0,68338.0,0.23107634]
[1729867695188,0.21378795,68339.0,68338.0,0.23107634]
[1729867695387,0.0732,68336.0,68335.0,0.0021949]
[1729867695981,0.073198,68338.0,68331.0,0.02029043]
[1729867695982,0.073206,68332.0,68331.0,0.02029043]
[1729867696179,0.14058995,68333.0,68330.0,0.073207]
[1729867696481,0.14058995,68333.0,68327.0,0.07321]
[1729867696683,0.073208,68329.0,68327.0,0.07321]
[1729867696892,0.073207,68330.0,68329.0,0.22061923]
[1729867697091,0.073207,68330.0,68329.0,0.073208]
[1729867697289,0.073208,68329.0,68328.0,0.22061923]
[1729867697494,0.07321,68327.0,68325.0,0.29383123]
[1729867697796,0.07321,68327.0,68326.0,0.23267375]
[1729867698002,0.14058995,68328.0,68325.0,0.073212]
[1729867698178,0.14058995,68328.0,68322.0,0.3608]
[1729867698179,0.14058995,68328.0,68327.0,0.07321]
[1729867698379,0.3608,68347.0,68327.0,0.14058995]
[1729867698380,0.3608,68340.0,68327.0,0.14058995]
[1729867698580,0.1186,68345.0,68339.0,0.14058995]
[1729867698889,0.073192,68344.0,68341.0,0.14058995]
[1729867699090,0.073194,68342.0,68341.0,0.073195]
[1729867699389,0.21378395,68342.0,68341.0,0.21891553]
[1729867699597,0.21378395,68342.0,68341.0,0.57971553]
[1729867699785,0.21378395,68342.0,68341.0,0.36812365]
[1729867699987,0.21378395,68342.0,68341.0,0.58060387]
[1729867700188,0.21378395,68342.0,68341.0,0.21980387]
[1729867700389,0.0732,68336.0,68335.0,0.36252]
[1729867700595,0.073202,68335.0,68332.0,0.073204]
[1729867700890,0.21378995,68336.0,68335.0,0.21835773]
[1729867701483,0.073204,68333.0,68330.0,0.38218837]
[1729867701683,0.14058995,68336.0,68330.0,0.38054837]
[1729867701684,0.073206,68331.0,68330.0,0.38054837]
[1729867702086,0.073206,68331.0,68330.0,0.45375537]
[1729867702285,0.14058995,68336.0,68331.0,0.073205]
[1729867703799,0.073205,68332.0,68331.0,0.073205]
[1729867704193,0.073201,68336.0,68335.0,0.073201]
[1729867704495,0.3608,68338.0,68335.0,0.14058995]
[1729867704696,0.074032,68344.0,68343.0,0.073193]
[1729867704898,0.073198,68340.0,68339.0,0.073196]
[1729867705395,0.073192,68344.0,68343.0,0.073192]
[1729867705597,0.073196,68340.0,68339.0,0.073196]
[1729867705794,0.25918995,68345.0,68335.0,0.3608]
[1729867705993,0.073192,68344.0,68343.0,0.073192]
[1729867708903,0.073188,68348.0,68341.0,0.14058995]
[1729867709103,0.073185,68351.0,68350.0,0.073183]
[1729867709406,0.1098,68354.0,68345.0,0.14058995]
[1729867709595,0.433982,68353.0,68352.0,0.073183]
[1729867709907,0.073189,68348.0,68347.0,0.073188]
[1729867710093,0.073194,68342.0,68341.0,0.09333526]
[1729867710293,0.57458395,68342.0,68341.0,0.09333526]
[1729867710897,0.57458395,68342.0,68341.0,0.02014026]
[1729867711202,0.57458395,68342.0,68336.0,0.36299465]
[1729867711203,0.073199,68337.0,68336.0,0.36299465]
[1729867711401,0.073199,68337.0,68336.0,0.43619465]
[1729867711801,0.073199,68337.0,68336.0,0.65669726]
[1729867712502,0.21378895,68337.0,68336.0,0.60372519]
[1729867713914,0.21378895,68337.0,68336.0,0.02242258]
[1729867714796,0.57458895,68337.0,68336.0,0.00219465]
[1729867715100,0.57458895,68337.0,68324.0,0.073212]
[1729867715101,0.073212,68325.0,68324.0,0.073212]
[1729867715402,0.073217,68321.0,68320.0,0.29329148]
[1729867715802,0.073217,68321.0,68320.0,0.073217]
[1729867716301,0.21380295,68325.0,68319.0,0.01989188]
[1729867716502,0.073215,68324.0,68323.0,0.073214]
[1729867716699,0.14058995,68325.0,68319.0,0.073218]
[1729867717014,0.07322,68318.0,68317.0,0.2207591]
[1729867717201,0.073221,68317.0,68316.0,0.02000863]
[1729867717397,0.073222,68316.0,68315.0,0.3608]
[1729867717704,0.21381195,68316.0,68315.0,0.3608]
[1729867717899,0.14058995,68316.0,68315.0,0.65231661]
[1729867718100,0.073221,68317.0,68316.0,0.073222]
[1729867718703,0.14058995,68319.0,68318.0,0.07322]
[1729867718896,0.21380895,68319.0,68318.0,0.07322]
[1729867719097,0.14058995,68319.0,68316.0,0.21991395]
[1729867719304,0.14058995,68319.0,68315.0,0.38135132]
[1729867719305,0.073221,68317.0,68315.0,0.38135132]
[1729867719499,0.073221,68317.0,68315.0,0.45457432]
[1729867719702,0.073221,68317.0,68316.0,0.21913924]
[1729867719897,0.21380995,68319.0,68318.0,0.07322]
[1729867720301,0.3608,68321.0,68316.0,0.14058995]
[1729867720601,0.434016,68321.0,68320.0,0.073217]
[1729867721004,0.3608,68321.0,68316.0,0.2186878]
[1729867721306,0.073222,68316.0,68315.0,0.02055132]
[1729867721605,0.14058995,68317.0,68314.0,0.00219558]
[1729867721606,0.073223,68315.0,68314.0,0.00219558]
[1729867721902,0.073223,68315.0,68314.0,0.22063003]
[1729867722098,0.073223,68315.0,68314.0,0.241153]
[1729867722300,0.073223,68315.0,68314.0,0.02271855]
[1729867725109,0.434023,68315.0,68314.0,0.02271855]
[1729867727214,0.434023,68315.0,68314.0,0.02052297]
[1729867727423,0.073226,68312.0,68307.0,0.14058995]
[1729867727624,0.073226,68312.0,68311.0,0.073227]
[1729867728319,0.14058995,68313.0,68312.0,0.073226]
[1729867728621,0.073227,68311.0,68310.0,0.073228]
[1729867729331,0.14058995,68313.0,68307.0,0.09330809]
[1729867729332,0.07323,68308.0,68307.0,0.09330809]
[1729867729621,0.07323,68308.0,68307.0,0.31395907]
[1729867730725,0.07323,68308.0,68307.0,0.24072807]
[1729867731121,0.14058995,68309.0,68308.0,0.07323]
[1729867731322,0.21381895,68309.0,68308.0,0.07323]
[1729867731526,0.21381895,68309.0,68308.0,0.29268967]
[1729867731722,0.21381895,68309.0,68308.0,0.21945967]
[1729867732024,0.21381895,68309.0,68307.0,0.02007709]
[1729867732025,0.07323,68308.0,68307.0,0.02007709]
[1729867732222,0.14058995,68308.0,68300.0,0.0459398]
[1729867732427,0.14058995,68301.0,68300.0,0.00219602]
[1729867732824,0.14058995,68301.0,68300.0,0.22073967]
[1729867733023,0.14058995,68301.0,68300.0,0.24062838]
[1729867733520,0.14058995,68301.0,68300.0,0.31386738]
[1729867733723,0.073236,68303.0,68300.0,0.31386738]
[1729867734026,0.073236,68303.0,68301.0,0.073237]
[1729867734231,0.14058995,68304.0,68302.0,0.073236]
[1729867734232,0.21382495,68304.0,68302.0,0.073236]
[1729867734430,0.3608,68320.0,68303.0,0.50138995]
[1729867734623,0.14058995,68318.0,68310.0,0.21381695]
[1729867734821,0.073225,68313.0,68311.0,0.2431]
[1729867735622,0.14058995,68318.0,68311.0,0.2431]
[1729867735623,0.073226,68312.0,68311.0,0.2431]
[1729867737541,0.073226,68312.0,68311.0,0.26319214]
[1729867738344,0.3608,68323.0,68311.0,0.48210461]
[1729867738527,0.073222,68316.0,68315.0,0.3608]
[1729867738726,0.073226,68313.0,68311.0,0.28438839]
[1729867738928,0.14058995,68312.0,68311.0,0.02009214]
[1729867739126,0.14058995,68312.0,68311.0,0.01190655]
[1729867739127,0.21381595,68312.0,68311.0,0.01190655]
[1729867739335,0.14058995,68315.0,68313.0,0.073225]
[1729867739737,0.14058995,68315.0,68314.0,0.29299419]
[1729867739932,0.14058995,68315.0,68314.0,0.30490021]
[1729867740134,0.14058995,68315.0,68314.0,0.073224]
[1729867740436,0.14058995,68315.0,68314.0,0.22079521]
[1729867740437,0.073223,68315.0,68314.0,0.22079521]
[1729867740839,0.073225,68314.0,68312.0,0.33639503]
[1729867741048,0.073225,68314.0,68313.0,0.27507519]
[1729867741225,0.073225,68314.0,68312.0,0.04374378]
[1729867741428,0.14058995,68316.0,68310.0,0.21942525]
[1729867741630,0.073228,68310.0,68309.0,0.21942525]
[1729867741825,0.14058995,68311.0,68308.0,0.38106027]
[1729867741826,0.073229,68309.0,68308.0,0.38106027]
[1729867742037,0.073229,68309.0,68308.0,0.02026027]
[1729867742230,0.073229,68309.0,68288.0,0.04376278]
[1729867742231,0.073244,68295.0,68288.0,0.04376278]
[1729867742434,0.073259,68281.0,68280.0,0.04376278]
[1729867742638,0.073259,68281.0,68276.0,0.18132486]
[1729867742639,0.073264,68277.0,68276.0,0.04496278]
[1729867742838,0.21385395,68277.0,68276.0,0.0012]
[1729867743043,0.21385395,68277.0,68276.0,0.02127607]
[1729867743239,0.073264,68277.0,68276.0,0.02127607]
[1729867744137,0.21385195,68279.0,68276.0,0.02127607]
[1729867744554,0.3608,68282.0,68278.0,0.073262]
[1729867745041,0.3608,68282.0,68280.0,0.073259]
[1729867745230,0.3608,68289.0,68281.0,0.43936]
[1729867745431,0.3608,68289.0,68284.0,0.14058995]
[1729867745630,0.3608,68289.0,68288.0,0.073252]
[1729867746038,0.14278726,68295.0,68288.0,0.72108997]
[1729867746039,0.00219731,68295.0,68288.0,0.72108997]
[1729867746243,0.00219731,68295.0,68294.0,0.434045]
[1729867746643,0.00219731,68295.0,68294.0,0.65374502]
[1729867747045,0.00219731,68295.0,68294.0,0.3048544]
[1729867747242,0.00219731,68295.0,68294.0,0.29294502]
[1729867747739,0.00219731,68295.0,68294.0,0.65374502]
[1729867747939,0.14058995,68314.0,68294.0,1.29578809]
[1729867748145,0.073226,68312.0,68311.0,0.073227]
[1729867748545,0.09561772,68324.0,68311.0,0.073227]
[1729867748546,0.00219632,68324.0,68311.0,0.35938822]
[1729867748749,0.21599927,68324.0,68322.0,0.073215]
[1729867749044,0.00219632,68324.0,68323.0,0.2928614]
[1729867749435,0.00219632,68324.0,68323.0,0.08511829]
[1729867749742,0.60142632,68324.0,68323.0,0.22570824]
[1729867749942,0.60142632,68324.0,68323.0,0.08511829]
[1729867751041,0.60142632,68324.0,68323.0,0.30366032]
[1729867751445,0.06521693,68324.0,68323.0,1.5624981]
[1729867751743,0.073194,68342.0,68334.0,0.073201]
[1729867751948,0.073194,68342.0,68341.0,0.3608]
[1729867752253,0.21098479,68345.0,68337.0,0.073198]
[1729867752554,0.073199,68338.0,68331.0,0.13484]
[1729867752760,0.073199,68338.0,68332.0,0.01190203]
[1729867752936,0.21098479,68340.0,68335.0,0.3608]
[1729867753137,0.073195,68342.0,68337.0,0.073199]
[1729867753348,0.57178479,68339.0,68336.0,0.21832207]
[1729867753652,0.3608,68347.0,68331.0,0.073205]
[1729867753653,0.073202,68335.0,68331.0,0.073205]
[1729867753842,0.21098479,68337.0,68329.0,0.38089262]
[1729867754035,0.28417979,68341.0,68334.0,0.073201]
[1729867754544,0.28417979,68341.0,68336.0,0.0732]
[1729867754844,0.3608,68347.0,68329.0,0.51573262]
[1729867754845,0.073191,68345.0,68330.0,0.21809328]
[1729867755050,0.073192,68344.0,68340.0,0.073196]
[1729867755247,0.3608,68347.0,68342.0,0.073194]
[1729867755440,0.073182,68353.0,68348.0,0.073187]
[1729867755743,0.073182,68353.0,68346.0,0.21098479]
[1729867755744,0.3608,68362.0,68346.0,0.21098479]
[1729867755936,0.073187,68349.0,68347.0,0.073188]
[1729867756135,0.073187,68348.0,68347.0,0.073188]
[1729867756336,0.073183,68353.0,68349.0,0.073186]
[1729867756543,0.073185,68351.0,68347.0,0.3608]
[1729867756850,0.073183,68353.0,68352.0,0.073183]
[1729867757346,0.073178,68357.0,68354.0,0.073181]
[1729867757541,0.073183,68353.0,68351.0,0.21098479]
[1729867757735,0.073183,68352.0,68351.0,0.073184]
[1729867757937,0.073187,68349.0,68347.0,0.3608]
[1729867758350,0.073187,68349.0,68348.0,0.073187]
[1729867759655,0.433982,68354.0,68352.0,0.073183]
[1729867759851,0.433982,68354.0,68353.0,0.073182]
[1729867760353,0.3608,68354.0,68353.0,0.073182]
[1729867760943,0.073176,68359.0,68350.0,0.21098479]
[1729867761141,0.11,68368.0,68357.0,0.073178]
[1729867761142,0.3608,68362.0,68357.0,0.073178]
[1729867761548,0.07537223,68358.0,68357.0,0.073178]
[1729867761943,0.07537223,68358.0,68357.0,0.09341743]
[1729867762353,0.00219523,68358.0,68357.0,0.09341743]
[1729867762553,0.07537223,68358.0,68357.0,0.09341743]
[1729867762754,0.00219523,68358.0,68357.0,0.09341743]
[1729867763448,0.00219523,68358.0,68357.0,0.53229743]
[1729867763643,0.00219523,68358.0,68357.0,0.89309743]
[1729867763848,0.00219523,68358.0,68357.0,0.45421743]
[1729867764652,0.01989533,68373.0,68357.0,0.38561548]
[1729867764953,0.28414079,68378.0,68367.0,0.3608]
[1729867765260,0.2214,68381.0,68375.0,0.28414379]
[1729867765550,0.2214,68381.0,68367.0,0.3608]
[1729867765551,0.073162,68373.0,68371.0,0.28414779]
[1729867765748,0.073162,68372.0,68371.0,0.21098479]
[1729867765948,0.073165,68369.0,68368.0,0.21935394]
[1729867766149,0.073161,68373.0,68372.0,0.07316]
[1729867770762,0.073166,68368.0,68367.0,0.02016092]
[1729867770963,0.073166,68368.0,68357.0,0.57178479]
[1729867770964,0.073166,68368.0,68357.0,0.36244]
[1729867771149,0.073177,68358.0,68357.0,0.433978]
[1729867771462,0.073174,68362.0,68361.0,0.073174]
[1729867771666,0.21098479,68367.0,68357.0,0.3608]
[1729867771852,0.073177,68361.0,68360.0,0.073174]
[1729867772464,0.3608,68363.0,68362.0,0.073172]
[1729867773759,0.433971,68363.0,68362.0,0.073172]
[1729867773955,0.073174,68361.0,68359.0,0.073175]
[1729867774156,0.3608,68363.0,68362.0,0.073172]
[1729867775063,0.073166,68369.0,68360.0,0.21098479]
[1729867775259,0.073166,68369.0,68368.0,0.073166]
[1729867775458,0.073167,68367.0,68364.0,0.073169]
[1729867775661,0.073167,68367.0,68366.0,0.073168]
[1729867775867,0.07317,68364.0,68362.0,0.073172]
[1729867776162,0.3608,68370.0,68363.0,0.073171]
[1729867776163,0.07317,68365.0,68363.0,0.073171]
[1729867776555,0.07317,68365.0,68364.0,0.29220573]
[1729867777054,0.3608,68370.0,68363.0,0.21927194]
[1729867777250,0.3608,68370.0,68363.0,0.073171]
[1729867777454,0.3608,68370.0,68359.0,0.14092]
[1729867777455,0.073169,68366.0,68359.0,0.14092]
[1729867777863,0.073169,68366.0,68364.0,0.07317]
[1729867778160,0.073175,68361.0,68360.0,0.073174]
[1729867779165,0.073174,68361.0,68359.0,0.073175]
[1729867779358,0.073175,68360.0,68359.0,0.073175]
[1729867779559,0.3608,68370.0,68357.0,0.59373561]
[1729867779560,0.21098479,68368.0,68357.0,0.59373561]
[1729867779760,0.21098479,68368.0,68361.0,0.073173]
[1729867779961,0.073167,68367.0,68361.0,0.073173]
[1729867780161,0.073172,68362.0,68361.0,0.073173]
[1729867780759,0.21098479,68368.0,68357.0,0.59373561]
[1729867781059,0.073175,68360.0,68359.0,0.073175]
[1729867781758,0.073177,68358.0,68357.0,0.38111082]
[1729867781961,0.073177,68358.0,68357.0,0.02031082]
[1729867782258,0.1161,68359.0,68353.0,0.073182]
[1729867782259,0.073181,68354.0,68353.0,0.073182]
[1729867782561,0.073178,68358.0,68356.0,0.073178]
[1729867782863,0.3608,68362.0,68361.0,0.073174]
[1729867783161,0.073169,68365.0,68364.0,0.07317]
[1729867785168,0.073169,68365.0,68364.0,0.43397]
[1729867785359,0.073159,68375.0,68373.0,0.07316]
[1729867785559,0.073159,68375.0,68374.0,0.07316]
[1729867785756,0.073155,68379.0,68378.0,0.073155]
[1729867785956,0.04327794,68379.0,68373.0,0.14060589]
[1729867786264,0.073159,68376.0,68375.0,0.073158]
[1729867786467,0.11643694,68376.0,68375.0,0.073158]
[1729867787273,0.04327794,68376.0,68375.0,0.073158]
[1729867787565,0.073158,68376.0,68375.0,0.073157]
[1729867787763,0.11643594,68376.0,68375.0,0.073157]
[1729867788161,0.11643594,68376.0,68373.0,0.3608]
[1729867788162,0.07316,68374.0,68373.0,0.3608]
[1729867788464,0.32727912,68374.0,68373.0,0.3608]
[1729867788664,0.68807912,68374.0,68370.0,0.073163]
[1729867788969,0.073169,68365.0,68364.0,0.09384891]
[1729867789263,0.11644694,68365.0,68364.0,0.07317]
[1729867790364,0.16663292,68365.0,68364.0,0.07317]
[1729867790558,0.11644694,68365.0,68364.0,0.07317]
[1729867790970,0.16674932,68365.0,68364.0,0.07317]
[1729867791266,0.11644694,68365.0,68364.0,0.07317]
[1729867791468,0.16675794,68365.0,68364.0,0.07317]
[1729867791968,0.11644694,68365.0,68364.0,0.07317]
[1729867792976,0.073173,68362.0,68361.0,0.073173]
[1729867793271,0.04327794,68362.0,68361.0,0.08507076]
[1729867793465,0.04327794,68373.0,68361.0,0.01189776]
[1729867793667,0.09363949,68372.0,68364.0,0.21084118]
[1729867793869,0.3608,68374.0,68364.0,0.21084118]
[1729867793870,0.04327794,68371.0,68364.0,0.21084118]
[1729867794069,0.073162,68373.0,68371.0,0.073162]
[1729867794365,0.11653823,68372.0,68371.0,0.073162]
[1729867795473,0.073162,68372.0,68371.0,0.073162]
[1729867795772,0.3608,68380.0,68369.0,0.21084118]
[1729867796067,0.00219437,68384.0,68365.0,0.3608]
[1729867796068,0.00219437,68384.0,68383.0,0.07315]
[1729867796871,0.00219437,68384.0,68383.0,0.43395]
[1729867797263,0.00219437,68384.0,68383.0,0.86333478]
[1729867797571,0.3608,68397.0,68383.0,0.80207866]
[1729867797770,0.073136,68396.0,68395.0,0.28397718]
[1729867798365,0.073132,68400.0,68399.0,0.073133]
[1729867798674,0.1172,68407.0,68395.0,0.21084118]
[1729867798675,0.3608,68402.0,68395.0,0.21084118]
[1729867798868,0.13740675,68407.0,68395.0,0.21084118]
[1729867799061,0.073136,68400.0,68399.0,0.073132]
[1729867799262,0.073136,68396.0,68395.0,0.28397718]
[1729867799468,0.36156,68409.0,68395.0,0.21084118]
[1729867799669,0.073126,68406.0,68405.0,0.073123]
[1729867800273,0.00088,68409.0,68408.0,0.073123]
[1729867800470,0.074002,68409.0,68408.0,0.28396418]
[1729867800779,0.074002,68409.0,68408.0,0.073123]
[1729867801075,0.073122,68409.0,68408.0,0.073123]
[1729867801370,0.073122,68409.0,68404.0,0.59189944]
[1729867801371,0.06024575,68409.0,68404.0,0.59189944]
[1729867801566,0.073126,68405.0,68404.0,0.38105826]
[1729867801871,0.073126,68405.0,68399.0,0.073133]
[1729867802077,0.073129,68403.0,68398.0,0.21084118]
[1729867802377,0.09847554,68402.0,68398.0,0.21084118]
[1729867802672,0.04556844,68401.0,68400.0,0.073132]
[1729867805876,0.3608,68414.0,68400.0,0.01189116]
[1729867806086,0.11817069,68413.0,68412.0,0.073119]
[1729867806375,0.13726811,68418.0,68417.0,0.073114]
[1729867806376,0.1172,68418.0,68417.0,0.073114]
[1729867806578,0.04560372,68418.0,68417.0,0.28395518]
[1729867807075,0.04560372,68418.0,68411.0,0.49504]
[1729867807276,0.21084118,68422.0,68415.0,0.073115]
[1729867807472,0.3608,68423.0,68413.0,0.073118]
[1729867807473,0.073113,68419.0,68413.0,0.073118]
[1729867807673,0.073113,68418.0,68415.0,0.073115]
[1729867807880,0.073113,68418.0,68417.0,0.3608]
[1729867808073,0.00219313,68425.0,68417.0,0.3608]
[1729867808271,0.04572831,68424.0,68417.0,0.3608]
[1729867808471,0.073107,68424.0,68421.0,0.073109]
[1729867808766,0.073108,68423.0,68421.0,0.073109]
[1729867809167,0.073112,68420.0,68417.0,0.3608]
[1729867809377,0.073112,68420.0,68419.0,0.073111]
[1729867809581,0.00219313,68425.0,68422.0,0.073108]
[1729867809776,0.07529813,68425.0,68424.0,0.3608]
[1729867809973,0.36299313,68425.0,68422.0,0.073108]
[1729867810166,0.073107,68423.0,68422.0,0.073108]
[1729867810580,0.00219313,68425.0,68424.0,0.073106]
[1729867810772,0.07529813,68425.0,68424.0,0.073106]
[1729867811982,0.073098,68432.0,68424.0,0.433906]
[1729867812183,0.073098,68432.0,68428.0,0.21084118]
[1729867812383,0.433894,68436.0,68428.0,0.21084118]
[1729867812686,0.3608,68449.0,68435.0,0.3608]
[1729867812876,0.073082,68447.0,68446.0,0.073081]
[1729867813377,0.073081,68448.0,68447.0,0.073081]
[1729867813574,0.073082,68447.0,68443.0,0.21084118]
[1729867813778,0.43388,68449.0,68448.0,0.073081]
[1729867813979,0.3608,68449.0,68448.0,0.073081]
[1729867814179,0.073085,68444.0,68443.0,0.02057584]
[1729867814387,0.073085,68444.0,68443.0,0.073086]
[1729867814584,0.3608,68449.0,68442.0,0.3608]
[1729867814974,0.073084,68445.0,68442.0,0.3608]
[1729867815288,0.073084,68445.0,68444.0,0.073085]
[1729867815682,0.073084,68446.0,68445.0,0.073083]
[1729867816581,0.107,68451.0,68450.0,0.073078]
[1729867816582,0.073078,68451.0,68450.0,0.073078]
[1729867816787,0.073078,68451.0,68450.0,0.28391918]
[1729867817587,0.073078,68451.0,68450.0,0.21084118]
[1729867817778,0.109,68461.0,68450.0,0.21084118]
[1729867817974,0.109,68461.0,68449.0,0.3608]
[1729867817975,0.109,68461.0,68456.0,0.21084118]
[1729867818174,0.109,68461.0,68451.0,0.21084118]
[1729867818590,0.21084118,68460.0,68451.0,0.21084118]
[1729867818787,0.073072,68457.0,68454.0,0.073074]
[1729867818983,0.109,68461.0,68456.0,0.21084118]
[1729867819176,0.073071,68457.0,68456.0,0.21084118]
[1729867819380,0.073071,68457.0,68456.0,0.28391318]
[1729867820177,0.00219189,68464.0,68463.0,0.073065]
[1729867820992,0.00219189,68464.0,68462.0,0.3608]
[1729867821182,0.36299189,68464.0,68457.0,0.21084118]
[1729867821383,0.073071,68457.0,68456.0,0.13416]
[1729867821579,0.073073,68455.0,68454.0,0.073074]
[1729867821777,0.073079,68449.0,68448.0,0.3608]
[1729867821984,0.073076,68453.0,68448.0,0.3608]
[1729867822284,0.00219189,68464.0,68450.0,0.21084118]
[1729867822488,0.073066,68462.0,68461.0,0.21084118]
[1729867823084,0.00219189,68464.0,68463.0,0.073065]
[1729867823696,0.073065,68463.0,68462.0,0.3608]
[1729867823889,0.073072,68456.0,68455.0,0.3608]
[1729867824089,0.3608,68463.0,68452.0,0.21084118]
[1729867824288,0.3608,68463.0,68458.0,0.21084118]
[1729867824482,0.073065,68463.0,68462.0,0.21084118]
[1729867825287,0.073066,68462.0,68460.0,0.073067]
[1729867825488,0.073067,68461.0,68460.0,0.073067]
[1729867826195,0.073067,68461.0,68458.0,0.21084118]
[1729867826196,0.00219189,68464.0,68458.0,0.21084118]
[1729867826388,0.00219189,68464.0,68463.0,0.64470618]
[1729867826690,0.00219189,68464.0,68463.0,0.86285559]
[1729867826883,0.3608,68472.0,68463.0,0.78979059]
[1729867827088,0.3608,68472.0,68468.0,0.21084118]
[1729867827291,0.3608,68472.0,68471.0,0.073056]
[1729867827485,0.1162,68483.0,68469.0,0.71393234]
[1729867827789,0.1162,68483.0,68478.0,0.21084118]
[1729867827988,0.1162,68483.0,68478.0,0.28388918]
[1729867828185,0.3608,68480.0,68473.0,0.073053]
[1729867828388,0.073052,68475.0,68473.0,0.073053]
[1729867828984,0.073052,68475.0,68473.0,0.09300623]
[1729867829294,0.3608,68480.0,68469.0,0.433858]
[1729867829590,0.073057,68470.0,68469.0,0.3608]
[1729867829984,0.073057,68470.0,68469.0,0.59202278]
[1729867830392,0.073057,68470.0,68469.0,0.66508078]
[1729867830586,0.3608,68474.0,68469.0,0.59202278]
[1729867830786,0.073057,68470.0,68469.0,0.59202278]
[1729867831098,0.073057,68470.0,68469.0,0.66508078]
[1729867831992,0.073055,68472.0,68471.0,0.073056]
[1729867832297,0.3608,68474.0,68473.0,0.073054]
[1729867832483,0.3608,68474.0,68473.0,0.28389518]
[1729867833000,0.3608,68480.0,68473.0,0.21084118]
[1729867833201,0.3608,68480.0,68478.0,0.21084118]
[1729867833400,0.073044,68482.0,68481.0,0.073045]
[1729867834289,0.1162,68483.0,68482.0,0.073044]
[1729867834491,0.1162,68483.0,68479.0,0.073047]
[1729867834691,0.073044,68482.0,68481.0,0.073044]
[1729867835288,0.4781,68486.0,68478.0,0.21084118]
[1729867835604,0.073047,68480.0,68478.0,0.28388918]
[1729867835805,0.073047,68479.0,68478.0,0.073048]
[1729867835992,0.07305,68477.0,68476.0,0.3608]
[1729867836295,0.07305,68477.0,68476.0,0.433851]
[1729867836603,0.073047,68480.0,68476.0,0.3608]
[1729867836803,0.073044,68482.0,68480.0,0.073046]
[1729867837094,0.073044,68482.0,68481.0,0.073045]
[1729867837289,0.073046,68481.0,68478.0,0.28388918]
[1729867837497,0.073046,68481.0,68480.0,0.073046]
[1729867838396,0.073046,68481.0,68480.0,0.21338499]
[1729867839192,0.073046,68481.0,68480.0,0.14033899]
[1729867839496,0.07305,68477.0,68476.0,0.38072433]
[1729867839703,0.21338899,68477.0,68476.0,0.38072433]
[1729867839898,0.07305,68477.0,68476.0,0.38072433]
[1729867841503,0.07305,68477.0,68476.0,0.01992433]
[1729867841696,0.07305,68477.0,68475.0,0.21339099]
[1729867841697,0.50113899,68480.0,68475.0,0.21339099]
[1729867841899,0.073051,68476.0,68475.0,0.073052]
[1729867842104,0.073051,68476.0,68475.0,0.21339099]
[1729867842703,0.073051,68476.0,68475.0,0.2340493]
[1729867842895,0.073051,68476.0,68475.0,0.1609973]
[1729867843110,0.073051,68476.0,68475.0,0.2340493]
[1729867844816,0.073051,68476.0,68475.0,0.1609973]
[1729867845110,0.073048,68479.0,68475.0,0.1609973]
[1729867845313,0.073048,68479.0,68478.0,0.14033899]
[1729867845511,0.073051,68476.0,68475.0,0.1609973]
[1729867846112,0.073051,68476.0,68475.0,0.2340493]
[1729867846499,0.073045,68482.0,68481.0,0.073045]
[1729867846899,0.4781,68486.0,68479.0,0.14033899]
[1729867846900,0.4781,68486.0,68483.0,0.073042]
[1729867847106,0.55114,68486.0,68485.0,0.21337999]
[1729867847611,0.55114,68486.0,68482.0,0.14033899]
[1729867847612,0.073043,68483.0,68482.0,0.14033899]
[1729867848214,0.073043,68483.0,68482.0,0.21338299]
[1729867848607,0.55114,68486.0,68484.0,0.073041]
[1729867848810,0.073041,68485.0,68484.0,0.073041]
[1729867850200,0.21337999,68485.0,68484.0,0.073041]
[1729867852311,0.073043,68483.0,68465.0,0.49484]
[1729867852507,0.14033899,68476.0,68470.0,0.14033899]
[1729867852706,0.14033899,68476.0,68465.0,0.567902]
[1729867852707,0.14033899,68479.0,68473.0,0.14033899]
[1729867853012,0.433843,68484.0,68483.0,0.073043]
[1729867853315,0.47953541,68484.0,68483.0,0.21338199]
[1729867853512,0.433843,68484.0,68483.0,0.21338199]
[1729867853703,0.433843,68484.0,68483.0,0.073043]
[1729867854209,0.3608,68484.0,68483.0,0.073043]
[1729867854417,0.00219106,68489.0,68483.0,0.14033899]
[1729867854616,0.073042,68484.0,68483.0,0.14033899]
[1729867854810,0.073042,68484.0,68483.0,0.21338199]
[1729867858106,0.073042,68484.0,68483.0,0.57418199]
[1729867860619,0.00219106,68489.0,68488.0,0.073038]
[1729867860920,0.00219106,68489.0,68488.0,0.21337699]
[1729867860921,0.07522806,68489.0,68488.0,0.21337699]
[1729867861223,0.04873981,68489.0,68485.0,0.14033899]
[1729867861408,0.073042,68484.0,68483.0,0.38070382]
[1729867861611,0.073042,68484.0,68483.0,0.01990382]
[1729867861813,0.48447188,68484.0,68470.0,0.1132]
[1729867862008,0.3268,68488.0,68460.0,0.3608]
[1729867862009,0.073057,68470.0,68460.0,0.3608]
[1729867862211,0.21340599,68461.0,68460.0,0.36244]
[1729867862416,0.21340599,68461.0,68460.0,0.00456922]
[1729867862610,0.14033899,68461.0,68455.0,0.60087]
[1729867862815,0.073072,68456.0,68455.0,0.59923]
[1729867863010,0.14033899,68461.0,68455.0,0.69230581]
[1729867863212,0.073072,68456.0,68455.0,0.61923281]
[1729867863415,0.073072,68456.0,68455.0,0.77145341]
[1729867863814,0.073072,68456.0,68455.0,0.63111442]
[1729867864124,0.3608,68474.0,68455.0,0.63111442]
[1729867864125,0.14590576,68487.0,68467.0,0.07306]